bitfinex/quotes_ETHUSD_20260121
["timestamp","ask_amount","ask_price","bid_price","bid_amount"]
[1769006753593,6.7170445,2977.5,2976.2,0.44924429]
[1769006754110,19.23319222,2977.5,2976.2,0.44924429]
[1769006754316,19.23319222,2977.5,2976.2,0.55500001]
[1769006754487,22.59171447,2977.5,2975.9,0.555]
[1769006754689,12.51614772,2977.3,2975.7,1e-08]
[1769006755495,6.71772134,2977.2,2975.7,0.55500001]
[1769006755721,10.07658201,2977.2,2975.7,0.52720848]
[1769006755884,10.07658201,2977.2,2975.1,0.555]
[1769006755885,12.51614772,2977.1,2975.1,0.555]
[1769006757213,12.51614772,2977.1,2974.1,3.36332833]
[1769006757214,12.51614772,2976.0,2974.1,0.001]
[1769006757515,6.72065592,2975.9,2974.1,0.001]
[1769006757732,10.08098388,2975.9,2974.1,0.001]
[1769006758010,10.08098388,2975.9,2973.9,12.98346935]
[1769006758011,12.2288508,2975.6,2973.4,12.42846935]
[1769006758216,13.44131184,2975.9,2973.4,12.42846935]
[1769006758217,12.2288508,2975.4,2973.4,12.42846935]
[1769006758619,1.22288508,2975.5,2973.4,12.42846935]
[1769006758918,22.30983468,2975.9,2973.5,12.99628207]
[1769006759214,22.30983468,2975.9,2973.6,0.555]
[1769006760113,12.2288508,2975.8,2973.5,12.99628207]
[1769006760278,12.2288508,2975.4,2973.5,0.555]
[1769006760479,12.2288508,2975.0,2972.8,0.555]
[1769006760715,12.2288508,2974.4,2971.8,13.73475903]
[1769006760920,12.2288508,2974.4,2971.9,3.36477764]
[1769006761118,12.2288508,2974.4,2971.8,13.17975903]
[1769006761119,12.2288508,2974.2,2971.8,13.17975903]
[1769006761419,12.2288508,2973.8,2971.8,0.18347696]
[1769006761628,0.555,2973.7,2971.8,0.18347696]
[1769006761919,0.128,2974.1,2971.8,0.18347696]
[1769006761920,12.2288508,2973.0,2971.8,1e-08]
[1769006762086,14.46078368,2972.9,2971.8,1e-08]
[1769006762396,12.2288508,2972.7,2970.2,12.99628207]
[1769006762599,12.2288508,2972.5,2970.2,12.99628207]
[1769006762924,12.3568508,2972.4,2969.8,14.66128207]
[1769006763119,0.555,2972.8,2970.4,12.99628207]
[1769006763321,12.50754409,2972.7,2970.4,12.99628207]
[1769006763912,10.0921752,2972.6,2969.8,1.49716968]
[1769006764112,12.2288508,2972.5,2970.1,16.36315715]
[1769006764421,6.7281168,2972.6,2970.5,12.99628207]
[1769006764626,0.555,2972.8,2972.2,0.001]
[1769006764834,0.555,2972.8,2970.4,12.99628207]
[1769006764835,12.2288508,2972.7,2970.4,12.99628207]
[1769006764990,12.2288508,2972.5,2969.9,12.99628207]
[1769006765200,12.2288508,2972.2,2970.4,0.555]
[1769006765538,6.72766414,2972.8,2970.5,12.99628207]
[1769006765744,3.36383207,2972.8,2970.5,12.99628207]
[1769006765890,12.7848508,2973.5,2970.4,7.2880999]
[1769006765891,6.85430658,2973.4,2970.8,3.36609667]
[1769006766097,1.96391574,2973.3,2970.9,12.99628207]
[1769006766297,1.96391574,2973.3,2970.5,3.36639009]
[1769006766298,12.3568508,2973.0,2970.7,3.36617604]
[1769006766550,12.3568508,2973.0,2970.5,0.556]
[1769006766551,12.3568508,2973.0,2970.5,12.99628207]
[1769006766691,12.3568508,2973.0,2970.7,3.36620264]
[1769006766896,12.3568508,2973.0,2970.7,3.36620507]
[1769006767139,12.3568508,2973.0,2970.6,16.36258397]
[1769006767303,12.2288508,2973.0,2970.8,12.99628207]
[1769006767510,0.128,2973.3,2970.8,12.99628207]
[1769006768141,6.72675904,2973.2,2971.0,12.49678207]
[1769006768420,10.09013856,2973.2,2971.0,12.49678207]
[1769006768589,22.31898936,2973.2,2971.0,12.49678207]
[1769006768794,12.2288508,2972.9,2970.5,13.55128207]
[1769006769025,12.2288508,2972.7,2970.5,0.555]
[1769006769193,12.2288508,2972.5,2970.5,0.555]
[1769006769394,12.3568508,2972.4,2970.5,0.555]
[1769006769593,12.2288508,2972.1,2970.5,0.555]
[1769006769831,0.128,2972.4,2970.5,0.555]
[1769006770134,0.128,2972.2,2970.5,1.11]
[1769006770714,6.72879588,2972.3,2970.5,1.11]
[1769006770895,10.09319382,2972.3,2970.5,1.11]
[1769006771096,6.72879588,2972.3,2970.5,1.11]
[1769006771300,6.72879588,2972.3,2970.5,4.47643134]
[1769006771616,6.72879588,2972.3,2970.6,3.3663233]
[1769006771931,0.556,2972.5,2970.6,10.0989699]
[1769006772094,12.2288508,2973.9,2971.0,12.99628207]
[1769006772298,0.556,2973.8,2971.0,12.99628207]
[1769006772498,0.128,2973.7,2971.0,13.55128207]
[1769006772845,0.556,2973.8,2971.0,13.55128207]
[1769006772846,0.556,2973.8,2971.2,12.99628207]
[1769006773004,0.556,2973.8,2971.4,12.99628207]
[1769006773196,0.556,2973.8,2971.6,12.99628207]
[1769006773729,12.7848508,2973.8,2971.0,13.55128207]
[1769006773898,0.128,2973.7,2971.0,13.55128207]
[1769006774106,12.2288508,2973.3,2971.0,3.9207862]
[1769006774305,12.3568508,2973.1,2971.0,0.555]
[1769006774603,12.3568508,2973.1,2971.0,3.92087007]
[1769006775026,12.3568508,2973.1,2971.0,4.47587007]
[1769006775745,12.2288508,2973.1,2971.0,7.84174014]
[1769006776143,6.72721156,2973.0,2971.0,7.84174014]
[1769006776934,6.72721156,2973.0,2971.2,0.001]
[1769006777132,0.002,2972.9,2971.2,0.001]
[1769006777641,0.002,2972.9,2971.2,0.556]
[1769006778231,0.002,2972.9,2971.3,6.73106046]
[1769006778763,0.002,2972.9,2971.4,0.03365416]
[1769006778959,0.556,2973.8,2971.4,0.03365416]
[1769006778960,0.556,2973.8,2971.7,19.36972889]
[1769006779140,20.09201713,2973.8,2971.3,10.09659069]
[1769006779340,20.09201713,2973.8,2971.4,0.2335703]
[1769006779551,12.81061211,2973.7,2971.4,0.2335703]
[1769006779845,12.81061211,2973.4,2971.2,3.92162888]
[1769006780045,12.81061211,2973.4,2971.3,0.555]
[1769006780255,10.0897992,2973.3,2971.3,3.92052713]
[1769006780666,12.81061211,2973.1,2969.0,11.97373789]
[1769006780874,0.3030198,2969.8,2969.6,0.555]
[1769006781226,0.1692,2969.3,2969.2,0.5569004]
[1769006781427,1.25669326,2970.4,2969.2,0.5569004]
[1769006781681,0.128,2971.5,2969.2,7.29272148]
[1769006781960,0.128,2971.5,2969.2,3.92481094]
[1769006781961,1.29386121,2971.4,2969.2,3.92481094]
[1769006782137,12.81061211,2971.2,2969.2,0.5569004]
[1769006782458,22.90788248,2971.1,2969.2,1.1119004]
[1769006782661,6.73151358,2971.1,2969.2,1.1119004]
[1769006782830,6.73151358,2971.1,2969.2,4.47971756]
[1769006783028,0.67315136,2971.0,2969.2,4.47971756]
[1769006783564,6.73038092,2971.6,2969.3,11.97373789]
[1769006783860,3.92089473,2971.9,2969.7,11.97373789]
[1769006784248,7.28578946,2971.9,2969.8,3.36723011]
[1769006784432,7.28578946,2971.9,2969.8,6.73446022]
[1769006784763,7.28578946,2971.9,2969.8,7.28946022]
[1769006784927,8.01436841,2971.9,2969.8,7.28946022]
[1769006785329,0.128,2972.8,2969.9,11.97373789]
[1769006785537,0.556,2972.5,2969.9,11.97373789]
[1769006785957,0.556,2972.5,2970.2,30.0]
[1769006786160,0.556,2972.5,2970.3,11.97373789]
[1769006786362,6.7285695,2972.4,2970.3,11.97373789]
[1769006786560,12.93861211,2972.3,2969.8,0.555]
[1769006786760,12.93861211,2972.1,2969.8,0.555]
[1769006786965,12.93861211,2972.1,2969.9,3.3671006]
[1769006787267,12.93861211,2972.1,2969.8,0.555]
[1769006787268,12.93861211,2972.1,2970.0,3.36692479]
[1769006787469,1.29386121,2972.0,2970.0,3.36692479]
[1769006787639,1.29386121,2972.0,2970.1,3.36687031]
[1769006788069,10.09115676,2972.9,2970.3,11.97373789]
[1769006788389,12.81061211,2972.5,2970.2,3.3667398]
[1769006788530,12.81061211,2972.1,2969.8,1.11]
[1769006788864,12.81061211,2972.0,2969.8,4.47714614]
[1769006789062,1.33666121,2971.9,2969.8,4.47713813]
[1769006789267,1.33666121,2971.9,2969.9,3.36707183]
[1769006789630,1.33666121,2971.9,2969.9,0.555]
[1769006790076,1.33666121,2971.9,2970.3,3.36665469]
[1769006790237,4.7015329,2971.9,2969.9,0.555]
[1769006790589,0.556,2972.5,2970.0,6.73400672]
[1769006790954,6.7285695,2972.4,2970.0,18.70774461]
[1769006791203,21.09207311,2972.3,2970.0,15.34074125]
[1769006791414,12.81061211,2972.3,2970.0,18.70774461]
[1769006792001,6.7285695,2972.4,2970.1,11.97373789]
[1769006792208,0.72845695,2972.3,2970.1,11.97373789]
[1769006792507,3.36451113,2972.2,2970.2,22.07406781]
[1769006792705,6.72902226,2972.2,2970.2,18.70729117]
[1769006793171,3.36451113,2972.2,2970.2,22.07406781]
[1769006793354,6.72902226,2972.2,2970.2,18.70729117]
[1769006793554,0.74574792,2972.1,2970.2,18.70729117]
[1769006793760,0.556,2972.5,2970.3,11.97373789]
[1769006793761,3.92021131,2972.5,2970.3,11.97373789]
[1769006793998,0.556,2972.5,2970.3,11.97373789]
[1769006794630,3.36315329,2973.4,2970.7,11.97373789]
[1769006794761,0.002,2973.5,2971.1,11.97373789]
[1769006794964,0.002,2973.5,2970.8,0.556]
[1769006794965,0.002,2973.5,2971.3,11.97373789]
[1769006795181,0.002,2973.5,2971.1,11.97373789]
[1769006795369,0.002,2973.5,2971.3,11.97373789]
[1769006795685,0.002,2973.5,2971.5,11.97373789]
[1769006796294,3.36505244,2973.5,2971.5,11.97373789]
[1769006796483,0.002,2973.5,2971.6,6.73038092]
[1769006796679,0.002,2973.5,2971.6,10.09557138]
[1769006796885,12.81261211,2973.5,2971.4,3.36533141]
[1769006797070,12.81261211,2973.5,2971.5,3.36528504]
[1769006797878,12.81261211,2973.5,2971.5,6.73058875]
[1769006798077,12.81261211,2973.5,2971.5,3.36528504]
[1769006798294,1.28126121,2973.4,2971.4,3.92041333]
[1769006798504,6.7265328,2973.3,2971.5,3.36527798]
[1769006798670,12.81061211,2973.2,2971.4,0.555]
[1769006798873,12.81061211,2973.0,2971.4,0.555]
[1769006799107,0.128,2972.9,2971.4,0.555]
[1769006799398,12.81061211,2972.6,2970.3,0.555]
[1769006799566,1.28106121,2972.5,2970.6,3.36630022]
[1769006799762,1.28106121,2972.5,2970.3,3.92155793]
[1769006799763,1.28106121,2972.5,2970.9,3.36594511]
[1769006799962,1.28106121,2972.5,2970.6,3.36631286]
[1769006800192,0.128,2972.9,2970.7,3.36614858]
[1769006800368,6.7281168,2972.6,2970.5,6.73287324]
[1769006801386,10.0921752,2972.6,2970.5,6.73287324]
[1769006801580,12.81061211,2972.9,2970.6,11.97373789]
[1769006802164,0.556,2973.1,2971.1,0.001]
[1769006802361,0.556,2973.1,2971.3,11.97373789]
[1769006802566,0.556,2973.1,2971.4,6.73083394]
[1769006802766,1.28126121,2973.4,2971.5,12.20730819]
[1769006802966,0.002,2973.5,2971.5,12.20730819]
[1769006804000,0.002,2973.5,2971.8,12.20730819]
[1769006804169,0.002,2973.5,2971.8,11.97373789]
[1769006804369,0.002,2973.5,2971.9,0.2335703]
[1769006804581,0.002,2973.5,2972.0,6.7294751]
[1769006805495,8.489875,2973.4,2971.8,1e-08]
[1769006805692,14.34333808,2973.3,2971.8,1e-08]
[1769006806569,6.72675904,2973.2,2971.8,1e-08]
[1769006806768,0.556,2973.1,2971.8,1e-08]
[1769006807081,12.82340962,2973.1,2971.8,1e-08]
[1769006808703,10.09081734,2973.0,2971.8,1e-08]
[1769006808891,2.2914227,2972.9,2971.8,1e-08]
[1769006809398,14.55883232,2972.9,2970.7,3.26640999]
[1769006810006,14.55883232,2972.9,2970.6,3.92130903]
[1769006810502,12.26740962,2972.3,2970.6,0.555]
[1769006810701,22.36094301,2972.2,2970.6,0.555]
[1769006810867,12.26740962,2972.1,2970.6,0.555]
[1769006811074,12.82340962,2972.1,2970.6,0.555]
[1769006811401,12.26740962,2971.7,2970.3,1e-08]
[1769006811919,12.26740962,2971.7,2970.3,0.55500001]
[1769006812083,1.22674096,2971.6,2970.3,0.52481056]
[1769006812906,3.36502162,2971.8,2970.3,3.89143043]
[1769006813427,6.7294751,2972.0,2970.3,0.52481056]
[1769006813701,12.26740962,2971.9,2970.3,0.52481056]
[1769006814299,12.26740962,2971.7,2970.3,1.07981056]
[1769006814602,1.25810083,2971.6,2970.3,2e-08]
[1769006814811,6.73060742,2971.5,2970.3,2e-08]
[1769006815309,3.36530371,2971.5,2970.3,2e-08]
[1769006815513,6.73060742,2971.5,2970.3,2e-08]
[1769006815810,3.36530371,2971.5,2970.3,2e-08]
[1769006816309,0.128,2971.9,2970.3,2e-08]
[1769006816481,0.68574751,2971.8,2970.3,2e-08]
[1769006816682,4.05081097,2971.8,2970.3,0.55500002]
[1769006816980,6.73012692,2971.8,2970.3,0.55500002]
[1769006817779,3.36506346,2971.8,2970.3,3.92160778]
[1769006818685,3.36473755,2972.0,2970.3,3.92160778]
[1769006818903,6.7294751,2972.0,2970.3,3.92160778]
[1769006819082,3.36473755,2972.0,2970.3,7.84327108]
[1769006819417,3.92028475,2972.4,2970.4,12.78066457]
[1769006819623,11.96053928,2972.3,2970.3,7.84327108]
[1769006819785,11.96053928,2972.3,2970.3,4.47660778]
[1769006819979,2.26093935,2972.2,2970.3,4.47660778]
[1769006820217,11.96053928,2972.0,2970.3,1.11000002]
[1769006820518,2.26093935,2972.2,2970.0,0.555]
[1769006820519,11.96053928,2971.6,2970.0,0.555]
[1769006820690,3.36530371,2971.5,2970.1,3.36681724]
[1769006820894,0.556,2971.6,2970.0,3.92198624]
[1769006821079,3.36470159,2972.1,2970.1,12.78066457]
[1769006821279,10.6481752,2972.6,2970.3,12.78066457]
[1769006821480,11.96053928,2972.3,2970.0,7.8439896]
[1769006821717,11.96053928,2972.1,2970.0,20.62465417]
[1769006821999,0.128,2972.4,2970.1,13.01423487]
[1769006822181,2.27367145,2972.4,2970.2,12.78066457]
[1769006822613,2.27367145,2972.4,2970.4,12.78066457]
[1769006822785,7.2841168,2972.6,2970.6,12.78066457]
[1769006823718,3.9200584,2972.6,2970.6,12.78066457]
[1769006824014,3.9200584,2972.6,2970.6,13.33566457]
[1769006824616,3.9200584,2972.6,2970.6,0.555]
[1769006824617,11.96053928,2972.5,2970.6,0.555]
[1769006824912,10.6481752,2972.6,2970.6,7.28761937]
[1769006824913,3.36439794,2972.3,2970.6,7.28761937]
[1769006825115,3.92007745,2972.6,2970.7,12.78066457]
[1769006825291,7.28420484,2972.6,2970.7,12.78066457]
[1769006825493,0.556,2972.6,2970.7,12.78066457]
[1769006825703,3.92006322,2972.6,2970.7,12.78066457]
[1769006826096,7.28412644,2972.6,2970.7,12.78066457]
[1769006826437,7.28412644,2972.6,2970.7,0.555]
[1769006826438,11.96053928,2972.5,2970.7,0.555]
[1769006826590,7.28412644,2972.6,2970.7,13.33566457]
[1769006826786,0.556,2972.6,2971.1,12.78066457]
[1769006826987,0.556,2972.6,2970.9,13.01423487]
[1769006827382,0.002,2972.7,2971.1,13.01423487]
[1769006827589,0.002,2972.7,2971.3,13.01423487]
[1769006828037,0.002,2972.9,2971.5,13.01423487]
[1769006828198,0.558,2973.5,2971.5,13.01423487]
[1769006828523,0.558,2973.5,2972.1,12.78066457]
[1769006828524,0.002,2973.5,2972.1,12.78066457]
[1769006828706,0.002,2973.5,2972.2,12.78066457]
[1769006828908,0.002,2973.5,2971.6,7.35226704]
[1769006828909,0.002,2973.7,2972.4,12.78066457]
[1769006829291,0.002,2974.1,2972.4,12.78066457]
[1769006829695,0.002,2974.1,2972.3,6.72879588]
[1769006829893,0.33841356,2974.1,2972.4,12.78066457]
[1769006830395,12.29895284,2974.1,2972.2,3.36447636]
[1769006830618,0.33841356,2974.1,2972.2,19.50965206]
[1769006830821,0.002,2974.1,2972.5,12.78066457]
[1769006831205,3.36442644,2974.1,2972.5,12.78066457]
[1769006831393,3.36442644,2974.1,2972.4,3.36428475]
[1769006831938,3.36442644,2974.1,2972.4,6.7285695]
[1769006832096,0.67267038,2974.0,2972.4,3.36428475]
[1769006832429,0.67267038,2974.0,2972.5,12.78066457]
[1769006832733,0.002,2974.1,2972.5,12.78066457]
[1769006832933,0.002,2974.1,2972.6,6.7281168]
[1769006833293,0.002,2974.1,2972.2,0.555]
[1769006833525,11.96253928,2974.1,2972.5,0.555]
[1769006833706,11.96253928,2974.1,2972.5,3.91917001]
[1769006833906,1.19625393,2974.0,2972.5,3.91917001]
[1769006834091,1.19625393,2974.0,2972.5,0.555]
[1769006834415,1.19625393,2974.0,2972.5,3.91915237]
[1769006834924,3.36258784,2973.9,2972.5,0.555]
[1769006835114,1.19625393,2974.0,2972.5,7.28333896]
[1769006835319,6.72687422,2974.1,2972.5,0.555]
[1769006835515,12.05051098,2973.9,2972.5,0.555]
[1769006835828,0.002,2974.1,2972.5,7.28333339]
[1769006836005,0.002,2974.1,2972.6,12.73107151]
[1769006836206,0.002,2974.1,2972.6,12.69743093]
[1769006836531,0.002,2974.1,2972.7,0.03363945]
[1769006836898,0.002,2974.1,2972.6,12.69743093]
[1769006837096,12.05251098,2974.1,2972.5,1.11]
[1769006837826,0.002,2974.1,2972.6,6.7617465]
[1769006838031,0.002,2974.1,2972.6,6.72810592]
[1769006838230,0.002,2974.1,2972.6,10.09216432]
[1769006838526,0.002,2974.1,2972.6,14.01122272]
[1769006838728,0.002,2974.9,2973.0,12.69743093]
[1769006838898,3.36354998,2974.9,2973.0,12.69743093]
[1769006839098,0.002,2974.9,2973.1,6.7269853]
[1769006839294,0.67248635,2974.8,2973.1,6.7269853]
[1769006839835,0.002,2974.9,2973.1,6.7269853]
[1769006840133,0.002,2973.9,2973.1,10.09047795]
[1769006840328,0.002,2973.9,2973.1,6.7269853]
[1769006840530,0.002,2974.9,2973.1,19.42441623]
[1769006840733,0.002,2974.9,2973.4,12.69743093]
[1769006840905,0.002,2974.9,2973.6,12.69743093]
[1769006841335,0.002,2974.9,2973.7,10.088442]
[1769006841970,0.002,2975.3,2974.1,12.69743093]
[1769006842246,3.35965059,2976.5,2974.1,12.69743093]
[1769006842452,12.05051098,2976.4,2973.7,26.58237867]
[1769006842601,12.05051098,2975.8,2973.7,19.42305893]
[1769006843105,12.05051098,2975.8,2973.7,0.555]
[1769006843446,12.05051098,2975.6,2973.7,3.91780889]
[1769006843813,12.05051098,2975.6,2973.7,7.28062289]
[1769006844343,12.05051098,2976.6,2974.4,12.69743093]
[1769006844506,0.17524646,2977.2,2975.3,12.69743093]
[1769006844835,12.05051098,2977.8,2975.7,0.2335703]
[1769006845138,12.05051098,2977.8,2974.9,0.2335703]
[1769006845139,12.05051098,2977.7,2975.0,2.818394]
[1769006845337,18.76732988,2977.6,2975.3,0.2335703]
[1769006845523,12.17851098,2977.5,2974.3,12.69743093]
[1769006845724,12.17851098,2977.3,2975.1,3.36123155]
[1769006846314,12.17851098,2977.3,2975.1,6.7224631]
[1769006846635,12.17851098,2977.3,2975.1,3.36123155]
[1769006847213,12.17851098,2977.3,2975.1,6.7224631]
[1769006847566,12.17851098,2977.3,2975.0,0.555]
[1769006847567,12.05051098,2977.1,2975.0,0.555]
[1769006847864,12.05051098,2976.7,2975.0,0.555]
[1769006848311,0.128,2976.9,2975.0,7.83265642]
[1769006849014,0.556,2977.0,2975.0,7.83265642]
[1769006849450,0.556,2977.0,2975.1,12.69743093]
[1769006849750,0.556,2977.0,2975.2,12.93100123]
[1769006850112,12.05051098,2976.9,2975.0,4.47131189]
[1769006850318,12.05051098,2976.7,2975.0,1.02881835]
[1769006850542,7.27419075,2977.0,2975.0,7.7514924]
[1769006850853,0.72741908,2976.9,2975.0,8.3064924]
[1769006851047,0.72741908,2976.9,2975.1,12.69743093]
[1769006851222,0.556,2977.0,2975.1,12.69743093]
[1769006851549,0.556,2977.0,2975.3,6.72201122]
[1769006852413,0.002,2976.7,2975.3,10.08301683]
[1769006852747,0.002,2976.7,2975.4,0.2335703]
[1769006852947,0.002,2976.7,2975.4,12.93100123]
[1769006853248,0.002,2976.9,2975.6,12.93100123]
[1769006853844,0.002,2976.9,2975.8,12.93100123]
[1769006854147,0.556,2978.2,2975.8,12.93100123]
[1769006854148,3.48787194,2978.1,2975.8,12.93100123]
[1769006854325,0.002,2978.1,2975.8,12.93100123]
[1769006855043,3.3598746,2978.1,2976.0,0.2335703]
[1769006855237,0.39158746,2978.0,2976.0,13.48700123]
[1769006855432,0.39158746,2978.0,2976.0,14.04200123]
[1769006855634,0.002,2978.1,2976.2,12.93100123]
[1769006856647,0.128,2978.8,2976.1,13.44040856]
[1769006856648,15.40681371,2979.5,2977.2,0.2335703]
[1769006856855,3.35817788,2979.6,2977.4,12.93100123]
[1769006856856,0.002,2979.6,2977.4,12.93100123]
[1769006857018,0.002,2979.6,2977.6,12.93100123]
[1769006857218,0.002,2979.6,2977.6,13.48700123]
[1769006857417,0.33580627,2979.5,2977.6,13.25343093]
[1769006857654,0.33580627,2979.5,2977.8,10.07455167]
[1769006857918,0.002,2979.6,2977.8,10.07455167]
[1769006857919,0.002,2979.6,2978.2,0.2335703]
[1769006858143,0.002,2979.6,2978.2,12.93100123]
[1769006858345,3.35626783,2979.5,2977.8,6.71636778]
[1769006858540,12.05251098,2979.6,2977.8,6.71636778]
[1769006858817,3.35816306,2979.6,2977.7,6.9501239]
[1769006859024,0.33581631,2979.5,2978.0,0.2335703]
[1769006859249,0.002,2979.6,2978.0,0.2335703]
[1769006859648,0.002,2979.6,2978.1,6.7156912]
[1769006859835,0.002,2979.6,2978.2,12.93100123]
[1769006860153,0.002,2979.6,2978.1,10.0735368]
[1769006860154,0.002,2980.3,2978.9,0.2335703]
[1769006860349,0.002,2980.3,2979.1,12.93100123]
[1769006860520,0.002,2980.3,2979.2,0.2335703]
[1769006860718,12.05051098,2981.3,2979.2,0.2335703]
[1769006860916,3.35659428,2981.0,2979.2,0.2335703]
[1769006861149,0.002,2981.0,2979.2,0.2335703]
[1769006861320,0.002,2981.0,2979.3,0.555]
[1769006861522,0.002,2981.0,2979.3,0.7885703]
[1769006861918,0.002,2981.0,2979.4,6.71276094]
[1769006862732,0.002,2981.0,2979.4,3.91138047]
[1769006862930,0.002,2981.0,2979.4,7.82276094]
[1769006863225,12.05051098,2980.9,2979.4,0.49641417]
[1769006863436,12.05251098,2980.5,2978.1,0.555]
[1769006864063,12.05251098,2980.5,2978.5,12.69743093]
[1769006864064,0.002,2980.5,2978.5,12.69743093]
[1769006864261,0.002,2980.5,2978.7,0.2335703]
[1769006864551,0.002,2980.5,2979.0,0.2335703]
[1769006864754,0.002,2980.5,2979.2,0.2335703]
[1769006864958,0.002,2980.5,2979.1,3.296873]
[1769006864959,0.002,2981.0,2979.4,12.93100123]
[1769006865155,0.002,2981.0,2979.9,0.2335703]
[1769006865457,0.002,2981.5,2980.2,13.19352339]
[1769006865660,1e-08,2981.9,2980.8,0.2335703]
[1769006866004,1e-08,2981.9,2980.9,10.61907459]
[1769006866119,1e-08,2981.9,2981.0,0.2335703]
[1769006866325,1e-08,2981.9,2980.3,0.2335703]
[1769006866655,1e-08,2981.9,2980.8,6.70956809]
[1769006867058,1e-08,2981.9,2980.0,14.5]
[1769006867245,1e-08,2981.9,2980.4,3.3552177]
[1769006867444,1e-08,2981.9,2980.1,0.2335703]
[1769006867636,1e-08,2981.9,2980.8,3.35480311]
[1769006868036,1e-08,2981.9,2980.5,3.35505495]
[1769006868442,1e-08,2981.9,2980.5,10.06533845]
[1769006868663,0.002,2983.0,2980.8,0.2335703]
[1769006868867,0.002,2983.0,2981.1,0.2335703]
[1769006869164,0.002,2983.0,2981.3,0.2335703]
[1769006869337,0.002,2983.0,2980.9,0.2335703]
[1769006869532,0.33562552,2982.9,2981.1,0.2335703]
[1769006869731,0.002,2983.0,2981.1,0.2335703]
[1769006869937,3.3543317,2983.0,2981.1,0.2335703]
[1769006870168,0.002,2983.0,2981.3,0.2335703]
[1769006871057,0.002,2983.0,2981.1,0.555]
[1769006871058,12.05992657,2983.0,2981.1,0.555]
[1769006872161,12.05792657,2982.8,2981.1,3.90944425]
[1769006872365,1.87628111,2982.7,2981.2,0.2335703]
[1769006872534,0.002,2983.0,2981.4,13.19352339]
[1769006872739,0.002,2983.0,2981.6,0.2335703]
[1769006872930,1e-08,2983.2,2981.8,13.19352339]
[1769006873131,1e-08,2983.2,2982.0,13.19352339]
[1769006873382,1e-08,2983.2,2982.1,8.783377]
[1769006873549,1e-08,2983.2,2982.1,12.95995309]
[1769006873758,1e-08,2983.2,2982.1,0.2335703]
[1769006874092,12.05992657,2985.3,2982.5,0.2335703]
[1769006874385,3.4778799,2985.2,2982.8,0.2335703]
[1769006874536,2.85392776,2985.2,2982.8,13.19352339]
[1769006874879,12.05992657,2985.3,2983.2,0.2335703]
[1769006875059,12.05992657,2985.3,2983.1,5.084591]
[1769006875060,0.002,2985.3,2983.6,0.2335703]
[1769006875233,0.002,2985.3,2983.6,13.19352339]
[1769006876064,12.05992657,2985.3,2983.2,2.077611]
[1769006876266,1.20599266,2985.2,2983.3,0.2335703]
[1769006876465,1.20599266,2985.2,2983.1,6.70443498]
[1769006876466,1.20599266,2985.2,2983.2,0.2335703]
[1769006877039,1.20599266,2985.2,2983.1,10.05665247]
[1769006877040,13.26391923,2985.2,2983.1,3.35221749]
[1769006877242,1.20599266,2985.2,2983.2,0.2335703]
[1769006877443,0.002,2985.3,2983.2,0.2335703]
[1769006878148,12.24595343,2985.1,2983.1,0.555]
[1769006878766,12.24595343,2984.9,2983.1,0.555]
[1769006878966,12.24595343,2984.7,2983.1,0.555]
[1769006879167,13.47054877,2984.6,2983.1,0.555]
[1769006879334,13.47054877,2984.6,2983.1,3.90718353]
[1769006879535,1.22459534,2984.6,2983.1,7.25940102]
[1769006879736,12.24795343,2985.3,2983.2,0.2335703]
[1769006879737,0.002,2985.3,2983.2,0.2335703]
[1769006879979,0.002,2985.3,2983.5,4.838053]
[1769006880179,0.002,2985.3,2983.3,14.5]
[1769006880483,12.24795343,2985.3,2983.5,6.70346744]
[1769006880788,0.002,2985.3,2983.6,21.6019163]
[1769006880997,0.002,2985.3,2983.8,0.2335703]
[1769006881273,0.002,2985.3,2983.7,0.2335703]
[1769006881649,0.002,2985.3,2983.8,30.0]
[1769006881851,0.002,2985.3,2983.7,12.43544908]
[1769006881852,0.002,2986.5,2984.4,12.20187878]
[1769006882205,0.0204971,2986.8,2985.6,0.2335703]
[1769006882206,1e-08,2986.8,2985.6,0.2335703]
[1769006882341,0.06371165,2987.8,2985.7,16.703013]
[1769006882658,0.06371165,2987.8,2985.8,0.2335703]
[1769006882869,0.06371165,2987.8,2985.5,0.2335703]
[1769006883172,12.24595343,2987.7,2985.2,3.3498593]
[1769006883376,12.24595343,2987.5,2985.2,0.2335703]
[1769006884098,22.28813057,2987.4,2985.0,0.2335703]
[1769006884378,12.24595343,2987.3,2984.8,3.35028175]
[1769006884592,12.24595343,2987.3,2983.7,3.90649962]
[1769006884593,12.24595343,2986.9,2984.9,0.555]
[1769006884871,12.24595343,2986.7,2984.9,0.555]
[1769006886233,22.29082049,2986.6,2984.9,0.555]
[1769006886434,1.22459534,2986.8,2984.9,7.25537869]
[1769006886726,0.128,2987.2,2985.0,0.2335703]
[1769006886727,3.34761649,2987.2,2985.0,0.2335703]
[1769006887016,6.69523298,2987.2,2985.0,0.2335703]
[1769006887237,12.24595343,2987.3,2985.0,0.2335703]
[1769006887380,1.22459534,2987.2,2985.0,0.26707113]
[1769006887578,12.24595343,2987.6,2985.1,0.2335703]
[1769006887802,12.24595343,2987.6,2985.0,0.2335703]
[1769006888204,6.69456066,2987.5,2985.3,0.2335703]
[1769006888713,12.24595343,2987.4,2985.0,14.5]
[1769006888936,12.24595343,2987.0,2984.9,1.11]
[1769006889420,12.24595343,2986.8,2985.1,0.001]
[1769006890084,6.69635382,2986.7,2985.1,0.001]
[1769006890284,0.554,2986.6,2985.1,0.001]
[1769006890493,0.128,2986.4,2983.7,0.555]
[1769006890693,12.24595343,2985.9,2983.7,0.555]
[1769006890983,12.24595343,2985.5,2983.7,0.555]
[1769006891596,0.128,2985.9,2983.1,1e-08]
[1769006891597,12.24595343,2984.6,2983.1,1e-08]
[1769006891915,12.24595343,2984.0,2982.0,3.35337821]
[1769006892091,0.554,2983.9,2982.1,0.03352316]
[1769006892296,0.554,2983.9,2981.6,2.526145]
[1769006892297,0.554,2983.9,2982.2,6.7064583]
[1769006892499,3.90532433,2983.9,2982.1,3.35330509]
[1769006892704,0.554,2984.4,2982.1,3.35330509]
[1769006892916,0.554,2984.4,2982.1,6.70664669]
[1769006893116,1.61505984,2984.3,2982.2,0.03353229]
[1769006893304,1.61505984,2984.3,2982.1,10.05998829]